[Event "Ebbe Cup 48"]
[Site "Goteborgs Schackcentrum, Vegatan 20, Gothenburg, Sweden"]
[Date "2025.02.14"]
[Round "1.10"]
[White "Bergdahl, Martin"]
[Black "Laudinger, Christian"]
[Result "0-1"]
[TimeControl "90 minutes + 30 seconds per move from move one"]
[WhiteFideId "1782231"]
[BlackFideId "1774638"]
[WhiteElo "1802"]
[BlackElo "1626"]

1. e4 {[%clk 01:30:58]} {[%emt 00:00:02]} d6 {[%emt 00:00:17]} 2. d4 {[%clk
01:31:22]} Nf6 {[%clk 01:31:07]} {[%emt 00:00:12]} 3. Nc3 {[%clk 01:31:46]}
{[%emt 00:00:06]} g6 {[%clk 01:31:27]} {[%emt 00:00:10]} 4. Nf3 {[%clk
01:32:06]} {[%emt 00:00:10]} Bg7 {[%clk 01:31:49]} {[%emt 00:00:08]} 5. Bg5
{[%clk 01:32:29]} {[%emt 00:00:07]} h6 {[%clk 01:31:25]} {[%emt 00:00:54]} 6.
Bh4 {[%clk 01:32:46]} {[%emt 00:00:12]} O-O {[%clk 01:30:15]} {[%emt 14:28:30]}
7. e5 {[%clk 01:33:08]} Nfd7 {[%clk 01:23:37]} 8. Nd5 {[%clk 01:31:21]} Re8
{[%clk 01:20:41]} 9. Bc4 {[%clk 01:29:05]} c6 {[%clk 01:18:27]} 10. e6 {[%clk
01:27:49]} fxe6 {[%clk 01:14:17]} 11. Nf4 {[%clk 01:27:20]} Nf8 {[%clk
01:12:12]} 12. Bg3 {[%clk 01:26:07]} Kh7 {[%clk 01:00:40]} 13. Bd3 {[%clk
01:26:01]} e5 {[%clk 00:59:59]} 14. Nxg6 {[%clk 01:24:18]} e4 {[%clk 00:57:16]}
15. Bxe4 {[%clk 01:23:04]} Qa5+ {[%clk 00:57:41]} 16. Kf1 {[%clk 01:22:57]} Bf5
{[%clk 00:55:14]} 17. Nxf8+ {[%clk 01:19:25]} Rxf8 {[%clk 00:55:17]} 18. Qd3
{[%clk 01:19:16]} Kg8 {[%clk 00:51:27]} 19. Bxf5 {[%clk 01:18:44]} Rxf5 {[%clk
00:48:53]} 20. Qb3+ {[%clk 01:18:46]} Kf8 {[%clk 00:45:30]} 21. Qxb7 {[%clk
01:18:30]} Qb5+ {[%clk 00:43:39]} 22. Qxb5 {[%clk 01:18:57]} cxb5 {[%clk
00:43:58]} 23. Re1 {[%clk 01:18:14]} Nc6 {[%clk 00:43:35]} 24. c3 {[%clk
01:17:26]} b4 {[%clk 00:43:20]} 25. Nh4 {[%clk 01:14:04]} Rb5 {[%clk 00:39:22]}
26. c4 {[%clk 01:12:49]} Ra5 {[%clk 00:37:58]} 27. d5 {[%clk 01:10:53]} Ne5
{[%clk 00:33:12]} 28. Bxe5 {[%clk 01:10:06]} dxe5 {[%clk 00:33:27]} 29. Nf5
{[%clk 01:07:37]} Bf6 {[%clk 00:33:25]} 30. Rb1 {[%clk 01:05:58]} Rxa2 {[%clk
00:33:01]} 31. g3 {[%clk 01:05:58]} b3 {[%clk 00:32:03]} 32. Ke2 {[%clk
01:02:24]} e4 {[%clk 00:31:45]} 33. Rhd1 {[%clk 01:02:20]} Bxb2 {[%clk
00:30:40]} 34. Ke3 {[%clk 01:02:07]} Rb8 {[%clk 00:29:44]} 35. d6 {[%clk
01:00:17]} exd6 {[%clk 00:27:47]} 36. Nxd6 {[%clk 01:00:21]} Bh8 {[%clk
00:25:43]} 37. c5 {[%clk 00:59:09]} b2 {[%clk 00:22:30]} 38. c6 {[%clk
00:59:37]} Ra3+ {[%clk 00:22:10]} 39. Kf4 {[%clk 00:59:08]} Rc3 {[%clk
00:21:53]} 40. Kxe4 {[%clk 00:56:30]} Rxc6 {[%clk 00:21:32]} 41. Kf5 {[%clk
00:53:22]} a5 {[%clk 00:18:58]} 42. Ke4 0-1

[Event "Ebbe Cup 48"]
[Site "Goteborgs Schackcentrum, Vegatan 20, Gothenburg, Sweden"]
[Date "2025.02.14"]
[Round "1.11"]
[White "Munuswamy, Shivakumar"]
[Black "Gallardo, Guillermo"]
[Result "0-1"]
[TimeControl "90 minutes + 30 seconds per move from move one"]
[WhiteFideId "1788914"]
[BlackFideId "1773488"]
[WhiteElo "1586"]
[BlackElo "1773"]

1. d4 {[%clk 01:30:53]} {[%emt 00:00:06]} Nf6 {[%clk 01:30:41]} {[%emt
00:00:19]} 2. Nf3 {[%clk 01:31:02]} {[%emt 00:00:21]} b6 {[%clk 01:30:28]}
{[%emt 00:00:43]} 3. c3 {[%clk 01:30:50]} {[%emt 00:00:42]} Bb7 {[%clk
01:30:02]} {[%emt 14:28:26]} 4. Bg5 {[%clk 01:30:03]} g6 {[%clk 01:27:12]} 5.
Nbd2 {[%clk 01:29:56]} Bg7 {[%clk 01:27:08]} 6. e3 {[%clk 01:29:11]} d6 {[%clk
01:26:31]} 7. Bd3 {[%clk 01:28:08]} Nbd7 {[%clk 01:26:35]} 8. e4 {[%clk
01:22:53]} e5 {[%clk 01:20:04]} 9. d5 {[%clk 01:21:28]} a5 {[%clk 01:17:58]} 10.
a3 {[%clk 01:17:44]} O-O {[%clk 01:15:42]} 11. O-O {[%clk 01:09:42]} h6 {[%clk
01:12:05]} 12. Bh4 {[%clk 01:08:36]} g5 {[%clk 01:10:31]} 13. Bg3 {[%clk
01:08:09]} Qe7 {[%clk 01:03:15]} 14. h4 {[%clk 01:06:40]} Nh5 {[%clk 00:49:14]}
15. Be2 {[%clk 00:45:22]} Nf4 {[%clk 00:37:35]} 16. Bxf4 {[%clk 00:34:57]} exf4
{[%clk 00:34:53]} 17. hxg5 {[%clk 00:34:24]} hxg5 {[%clk 00:34:59]} 18. Nb3
{[%clk 00:34:08]} Qxe4 {[%clk 00:28:04]} 19. Nxg5 {[%clk 00:29:04]} Qxd5 {[%clk
00:27:27]} 20. Bf3 {[%clk 00:28:32]} Qxd1 {[%clk 00:27:18]} 21. Raxd1 {[%clk
00:28:25]} Bxf3 {[%clk 00:27:25]} 22. Nxf3 {[%clk 00:28:15]} Ne5 {[%clk
00:24:47]} 23. Nfd4 {[%clk 00:25:36]} Nc4 {[%clk 00:22:17]} 24. Rd3 {[%clk
00:18:23]} Nxb2 {[%clk 00:19:36]} 25. Rf3 {[%clk 00:17:59]} Be5 {[%clk
00:17:11]} 26. Nc6 {[%clk 00:16:33]} f6 {[%clk 00:14:36]} 27. Rh3 {[%clk
00:12:04]} Kg7 {[%clk 00:13:53]} 28. Nbd4 {[%clk 00:10:32]} Rh8 {[%clk
00:09:48]} 29. Ne6+ {[%clk 00:08:59]} Kg6 {[%clk 00:06:38]} 30. Nxe5+ {[%clk
00:06:14]} fxe5 {[%clk 00:05:56]} 31. Rxh8 {[%clk 00:06:15]} Rxh8 {[%clk
00:06:24]} 32. Nxc7 {[%clk 00:06:27]} Nc4 {[%clk 00:05:55]} 33. a4 {[%clk
00:06:14]} Kf5 {[%clk 00:05:43]} 34. Rb1 {[%clk 00:06:13]} Ke4 {[%clk
00:05:34]} 35. Rd1 {[%clk 00:04:19]} Rg8 {[%clk 00:05:10]} 36. Nd5 {[%clk
00:04:10]} Rh8 {[%clk 00:04:33]} 37. Nf6+ {[%clk 00:02:29]} Kf5 {[%clk
00:04:44]} 38. Nd5 {[%clk 00:02:16]} Rh7 {[%clk 00:03:43]} 39. Rb1 {[%clk
00:02:03]} Rb7 {[%clk 00:03:40]} 40. f3 {[%clk 00:01:28]} Ke6 {[%clk 00:03:36]}
41. Rd1 {[%clk 00:01:04]} Nb2 {[%clk 00:03:30]} 42. Rd2 {[%clk 00:01:09]} Nxa4
{[%clk 00:03:39]} 43. c4 {[%clk 00:01:27]} Nc5 {[%clk 00:02:52]} 44. Re2 {[%clk
00:01:16]} Kd7 {[%clk 00:02:54]} 45. Nc3 {[%clk 00:01:02]} a4 {[%clk 00:03:02]}
46. Nb5 {[%clk 00:01:01]} Kc6 {[%clk 00:03:02]} 47. Rd2 {[%clk 00:01:07]} Rd7
{[%clk 00:03:20]} 48. Kf2 {[%clk 00:01:08]} Nb3 {[%clk 00:01:49]} 49. Ra2
{[%clk 00:01:23]} Nd4 {[%clk 00:01:29]} 50. Nc3 {[%clk 00:01:24]} Ra7 {[%clk
00:01:14]} 51. Ke1 {[%clk 00:00:47]} b5 {[%clk 00:01:08]} 52. cxb5+ {[%clk
00:00:59]} Nxb5 {[%clk 00:01:26]} 53. Nxa4 {[%clk 00:01:12]} d5 {[%clk
00:01:15]} 54. Rc2+ {[%clk 00:01:24]} Kd6 {[%clk 00:01:32]} 55. Nb6 {[%clk
00:01:41]} Ra1+ {[%clk 00:01:48]} 56. Kd2 {[%clk 00:01:48]} Nd4 {[%clk
00:01:12]} 57. Nc8+ {[%clk 00:02:03]} Ke6 {[%clk 00:01:27]} 58. Rc5 {[%clk
00:01:53]} Nb3+ 59. Ke1 {[%clk 00:01:53]} 0-1

[Event "Ebbe Cup 48"]
[Site "Goteborgs Schackcentrum, Vegatan 20, Gothenburg, Sweden"]
[Date "2025.02.15"]
[Round "2.1"]
[White "Karlsson, Stefan"]
[Black "Brodocz, Bartosz"]
[Result "1-0"]
[TimeControl "90 minutes + 30 seconds per move from move one"]
[WhiteFideId "1771183"]
[BlackFideId "21025894"]
[WhiteElo "2050"]
[BlackElo "1821"]

1. e4 {[%clk 01:27:33]} {[%emt 00:03:26]} c5 {[%clk 01:30:55]} {[%emt
00:00:06]} 2. Nf3 {[%clk 01:27:48]} {[%emt 00:00:14]} g6 {[%clk 01:30:58]}
{[%emt 00:00:28]} 3. c3 {[%clk 01:27:38]} {[%emt 00:00:40]} Bg7 {[%clk
01:31:23]} {[%emt 00:00:04]} 4. d4 {[%clk 01:28:03]} {[%emt 00:00:05]} cxd4
{[%clk 01:31:49]} {[%emt 00:00:05]} 5. cxd4 {[%clk 01:28:28]} {[%emt 00:00:03]}
d5 {[%clk 01:32:16]} {[%emt 00:00:05]} 6. e5 {[%clk 01:28:43]} {[%emt
00:00:15]} a6 {[%clk 01:32:30]} {[%emt 00:00:16]} 7. h3 {[%clk 01:27:34]}
{[%emt 00:01:38]} f6 {[%clk 01:32:50]} {[%emt 00:00:11]} 8. Bf4 {[%clk
01:17:58]} {[%emt 00:10:06]} Nc6 {[%clk 01:33:03]} {[%emt 00:00:17]} 9. Qd2
{[%clk 01:13:08]} {[%emt 00:05:20]} Bf5 {[%clk 01:28:26]} {[%emt 00:05:07]} 10.
Nc3 {[%clk 01:08:27]} {[%emt 00:05:10]} Be4 {[%clk 01:27:13]} {[%emt 00:01:43]}
11. exf6 {[%clk 01:07:50]} {[%emt 00:01:08]} Nxf6 {[%clk 01:27:21]} {[%emt
00:00:22]} 12. Ng5 {[%clk 01:03:33]} {[%emt 00:04:46]} Bf5 {[%clk 01:22:22]}
{[%emt 00:05:29]} 13. g4 {[%clk 01:01:17]} {[%emt 00:02:45]} Bd7 {[%clk
01:19:58]} {[%emt 00:02:54]} 14. Bg2 {[%clk 00:49:30]} {[%emt 00:12:17]} h6
{[%clk 01:16:56]} {[%emt 00:03:32]} 15. Nf3 {[%clk 00:49:43]} {[%emt 00:00:18]}
g5 {[%clk 01:15:24]} {[%emt 00:02:03]} 16. Be5 {[%clk 00:35:02]} {[%emt
00:15:11]} O-O {[%clk 01:10:26]} {[%emt 00:05:26]} 17. Qe3 {[%clk 00:28:32]}
{[%emt 00:07:00]} Be8 {[%clk 00:59:58]} {[%emt 00:10:58]} 18. O-O {[%clk
00:27:55]} {[%emt 00:01:08]} Bg6 {[%clk 00:48:03]} {[%emt 00:12:26]} 19. Ne1
{[%clk 00:27:25]} {[%emt 00:00:59]} Nxe5 {[%clk 00:44:49]} {[%emt 00:03:45]} 20.
Qxe5 {[%clk 00:26:35]} {[%emt 00:01:19]} Bf7 {[%clk 00:37:57]} {[%emt
00:07:22]} 21. Qe3 {[%clk 00:25:16]} {[%emt 00:01:49]} e5 {[%clk 00:34:24]}
{[%emt 00:04:04]} 22. Nf3 {[%clk 00:23:00]} {[%emt 00:02:46]} e4 {[%clk
00:30:16]} {[%emt 00:04:38]} 23. Ne5 {[%clk 00:22:59]} {[%emt 00:00:31]} Nh7
{[%clk 00:28:49]} {[%emt 00:01:56]} 24. Nxf7 {[%clk 00:22:45]} {[%emt
00:00:45]} Rxf7 {[%clk 00:29:04]} {[%emt 00:00:15]} 25. Rad1 {[%clk 00:21:40]}
{[%emt 00:01:34]} Nf8 {[%clk 00:27:23]} {[%emt 00:02:12]} 26. f3 {[%clk
00:21:24]} {[%emt 00:00:45]} Ne6 {[%clk 00:25:17]} {[%emt 00:02:36]} 27. fxe4
{[%clk 00:20:56]} {[%emt 00:00:58]} Rxf1+ {[%clk 00:25:27]} {[%emt 00:00:21]}
28. Bxf1 {[%clk 00:19:47]} {[%emt 00:01:39]} Qb6 {[%clk 00:23:57]} {[%emt
00:01:59]} 29. e5 {[%clk 00:17:56]} {[%emt 00:02:21]} Nf4 {[%clk 00:19:33]}
{[%emt 00:04:54]} 30. Rd2 {[%clk 00:17:27]} {[%emt 00:00:58]} Re8 {[%clk
00:19:20]} {[%emt 00:00:44]} 31. Qf2 {[%clk 00:15:20]} {[%emt 00:02:37]} Rf8
{[%clk 00:19:21]} {[%emt 00:00:29]} 32. Qe3 {[%clk 00:15:13]} {[%emt 00:00:37]}
Re8 {[%clk 00:19:19]} {[%emt 00:00:32]} 33. Nd1 {[%clk 00:14:37]} {[%emt
00:01:05]} Re6 {[%clk 00:17:17]} {[%emt 00:02:33]} 34. Kh2 {[%clk 00:12:40]}
{[%emt 00:02:27]} Qc7 {[%clk 00:15:55]} {[%emt 00:01:53]} 35. Nc3 {[%clk
00:10:37]} {[%emt 00:02:32]} b5 {[%clk 00:13:38]} {[%emt 00:02:47]} 36. Qf3
{[%clk 00:09:53]} {[%emt 00:01:14]} Bxe5 {[%clk 00:11:14]} {[%emt 00:02:54]} 37.
dxe5 {[%clk 00:10:04]} {[%emt 00:00:19]} Qxe5 {[%clk 00:11:37]} {[%emt
00:00:07]} 38. Qg3 {[%clk 00:09:55]} {[%emt 00:00:38]} d4 {[%clk 00:10:11]}
{[%emt 00:01:57]} 39. Ne2 {[%clk 00:09:49]} {[%emt 00:00:36]} d3 {[%clk
00:09:30]} {[%emt 00:01:11]} 40. Nxf4 {[%clk 00:09:19]} {[%emt 00:00:59]} gxf4
{[%clk 00:09:46]} {[%emt 00:00:15]} 41. Qf3 {[%clk 00:07:09]} {[%emt 00:02:39]}
Qe3 {[%clk 00:09:42]} {[%emt 00:00:34]} 42. Rxd3 {[%clk 00:07:04]} {[%emt
00:00:36]} Qe1 {[%clk 00:08:57]} {[%emt 00:01:14]} 43. Rd1 {[%clk 00:06:18]}
{[%emt 00:01:16]} Qb4 {[%clk 00:08:57]} {[%emt 00:00:31]} 44. Qb3 {[%clk
00:03:56]} {[%emt 00:02:52]} Qxb3 {[%clk 00:09:02]} {[%emt 00:00:26]} 45. axb3
{[%clk 00:04:24]} {[%emt 00:00:01]} Re3 {[%clk 00:09:22]} {[%emt 00:00:10]} 46.
Bd3 {[%clk 00:04:16]} {[%emt 00:00:38]} Kg7 {[%clk 00:09:28]} {[%emt 00:00:25]}
47. h4 {[%clk 00:03:00]} {[%emt 00:01:45]} Rg3 {[%clk 00:09:25]} {[%emt
00:00:33]} 48. g5 {[%clk 00:03:01]} {[%emt 00:00:29]} hxg5 {[%clk 00:09:44]}
{[%emt 00:00:11]} 49. hxg5 {[%clk 00:03:27]} {[%emt 00:00:04]} Rxg5 {[%clk
00:10:10]} {[%emt 00:00:04]} 50. Rg1 {[%clk 00:03:45]} {[%emt 00:00:12]} Rxg1
{[%clk 00:10:14]} {[%emt 00:00:26]} 51. Kxg1 {[%clk 00:04:11]} {[%emt
00:00:04]} Kf6 {[%clk 00:10:38]} {[%emt 00:00:06]} 52. Kf2 {[%clk 00:04:32]}
{[%emt 00:00:09]} Ke5 {[%clk 00:11:02]} {[%emt 00:00:06]} 53. Kf3 {[%clk
00:04:56]} {[%emt 00:00:06]} Kd4 {[%clk 00:10:35]} {[%emt 00:00:57]} 54. Be2
{[%clk 00:04:54]} {[%emt 00:00:32]} Kc5 {[%clk 00:10:29]} {[%emt 00:00:37]} 55.
Kxf4 {[%clk 00:04:41]} {[%emt 00:00:43]} Kb4 {[%clk 00:10:40]} {[%emt
00:00:18]} 56. Bd1 {[%clk 00:05:05]} {[%emt 00:00:06]} a5 {[%clk 00:10:48]}
{[%emt 00:00:23]} 57. Ke4 {[%clk 00:05:19]} {[%emt 00:00:16]} a4 {[%clk
00:11:00]} {[%emt 00:00:18]} 58. Kd4 {[%clk 00:05:28]} {[%emt 00:00:20]} axb3
{[%clk 00:08:40]} {[%emt 00:02:51]} 59. Kd5 {[%clk 00:05:45]} {[%emt 00:00:12]}
Ka5 {[%clk 00:07:04]} {[%emt 00:02:06]} 60. Kc5 {[%clk 00:05:44]} {[%emt
00:00:31]} Ka6 {[%clk 00:05:25]} {[%emt 00:02:06]} 61. Be2 {[%clk 00:05:48]}
{[%emt 00:00:29]} Ka5 {[%clk 00:05:15]} {[%emt 00:00:40]} 62. Bd3 {[%clk
00:06:13]} {[%emt 00:00:05]} b4 {[%clk 00:04:18]} {[%emt 00:01:27]} 63. Bc4
{[%clk 00:06:08]} {[%emt 00:00:35]} Ka4 {[%clk 00:04:31]} {[%emt 00:00:18]} 64.
Bg8 {[%clk 00:06:34]} {[%emt 00:00:03]} Ka5 {[%clk 00:04:52]} {[%emt 00:00:09]}
65. Bxb3 {[%clk 00:07:00]} {[%emt 00:00:04]} Ka6 {[%clk 00:05:05]} {[%emt
00:00:17]} 66. Kxb4 {[%clk 00:07:25]} {[%emt 00:00:05]} Kb6 {[%clk 00:05:11]}
{[%emt 00:00:24]} 67. Bc4 {[%clk 00:07:46]} {[%emt 00:00:09]} Kc7 {[%clk
00:05:28]} {[%emt 00:00:13]} 68. Kb5 {[%clk 00:08:06]} {[%emt 00:00:10]} Kb7
{[%clk 00:05:34]} {[%emt 00:00:25]} 69. Bd5+ {[%clk 00:08:29]} {[%emt
00:00:07]} Ka7 {[%clk 00:05:54]} {[%emt 00:00:09]} 70. b4 {[%clk 00:08:46]}
{[%emt 00:00:12]} Kb8 {[%clk 00:06:16]} {[%emt 00:00:09]} 71. Kb6 {[%clk
00:09:08]} {[%emt 00:00:08]} Kc8 {[%clk 00:06:33]} {[%emt 00:00:13]} 72. b5
{[%clk 00:09:27]} {[%emt 00:00:10]} Kb8 {[%clk 00:06:51]} {[%emt 00:00:13]} 73.
Bh1 {[%clk 00:09:52]} {[%emt 00:00:05]} Kc8 {[%clk 00:07:13]} {[%emt 00:00:09]}
74. Ka7 {[%clk 00:10:19]} {[%emt 00:00:03]} 1-0

[Event "Ebbe Cup 48"]
[Site "Goteborgs Schackcentrum, Vegatan 20, Gothenburg, Sweden"]
[Date "2025.02.15"]
[Round "2.2"]
[White "Bergdahl, Daniel"]
[Black "Andren, Patrik"]
[Result "0-1"]
[TimeControl "90 minutes + 30 seconds per move from move one"]
[WhiteFideId "1780921"]
[BlackFideId "1767135"]
[WhiteElo "1818"]
[BlackElo "1959"]

1. e4 {[%clk 01:30:59]} e6 {[%clk 01:28:16]} {[%emt 00:02:45]} 2. d4 {[%clk
01:31:21]} {[%emt 00:00:06]} d5 {[%clk 01:28:41]} {[%emt 00:00:06]} 3. e5
{[%clk 01:31:43]} {[%emt 00:00:08]} c5 {[%clk 01:29:00]} {[%emt 00:00:11]} 4.
c3 {[%clk 01:32:08]} {[%emt 00:00:04]} Nc6 {[%clk 01:29:24]} {[%emt 00:00:07]}
5. Nf3 {[%clk 01:32:28]} {[%emt 00:00:09]} Nge7 {[%clk 01:29:44]} {[%emt
00:00:10]} 6. Bd3 {[%clk 01:32:14]} {[%emt 00:00:44]} cxd4 {[%clk 01:28:32]}
{[%emt 00:01:43]} 7. cxd4 {[%clk 01:32:35]} {[%emt 00:00:09]} Nf5 {[%clk
01:28:55]} {[%emt 00:00:06]} 8. Bxf5 {[%clk 01:32:12]} {[%emt 00:00:52]} exf5
{[%clk 01:29:15]} {[%emt 00:00:11]} 9. O-O {[%clk 01:32:28]} {[%emt 00:00:14]}
Be7 {[%clk 01:29:26]} {[%emt 00:00:20]} 10. Nc3 {[%clk 01:29:03]} {[%emt
00:03:55]} Be6 {[%clk 01:29:43]} {[%emt 00:00:12]} 11. Re1 {[%clk 01:29:15]}
{[%emt 00:00:18]} O-O {[%clk 01:25:16]} {[%emt 00:04:58]} 12. Ne2 {[%clk
01:28:17]} {[%emt 00:01:26]} Qb6 {[%clk 01:15:07]} {[%emt 00:10:41]} 13. Nf4
{[%clk 01:28:07]} {[%emt 00:00:39]} Rac8 {[%clk 01:14:48]} {[%emt 00:00:49]} 14.
Nh5 {[%clk 01:27:41]} {[%emt 00:00:56]} Rfd8 {[%clk 01:09:17]} {[%emt
00:06:02]} 15. Qd2 {[%clk 01:26:51]} {[%emt 00:01:19]} Qb4 {[%clk 01:02:07]}
{[%emt 00:07:41]} 16. Qe3 {[%clk 01:25:53]} {[%emt 00:01:27]} Kf8 {[%clk
00:59:29]} {[%emt 00:03:09]} 17. Nxg7 {[%clk 01:23:02]} {[%emt 00:03:21]} Kxg7
{[%clk 00:57:39]} {[%emt 00:02:20]} 18. Qh6+ {[%clk 01:23:10]} {[%emt
00:00:21]} Kh8 {[%clk 00:57:40]} {[%emt 00:00:29]} 19. a3 {[%clk 01:23:15]}
{[%emt 00:00:26]} Qa5 {[%clk 00:53:37]} {[%emt 00:04:33]} 20. Bd2 {[%clk
01:23:03]} {[%emt 00:00:41]} Bf8 {[%clk 00:53:02]} {[%emt 00:01:05]} 21. Qh4
{[%clk 01:21:41]} {[%emt 00:01:52]} Qc7 {[%clk 00:46:16]} {[%emt 00:07:17]} 22.
Bg5 {[%clk 01:20:51]} {[%emt 00:01:19]} Bg7 {[%clk 00:39:41]} {[%emt 00:07:06]}
23. Bf6 {[%clk 01:17:26]} {[%emt 00:03:54]} Bxf6 {[%clk 00:36:58]} {[%emt
00:03:13]} 24. Qxf6+ {[%clk 01:17:45]} {[%emt 00:00:10]} Kg8 {[%clk 00:37:12]}
{[%emt 00:00:17]} 25. Qh6 {[%clk 01:17:27]} {[%emt 00:00:48]} f4 {[%clk
00:36:19]} {[%emt 00:01:24]} 26. Qxf4 {[%clk 01:07:11]} {[%emt 00:10:44]} Kf8
{[%clk 00:32:02]} {[%emt 00:04:49]} 27. Ng5 {[%clk 01:05:41]} {[%emt 00:01:59]}
Ke7 {[%clk 00:27:58]} {[%emt 00:04:34]} 28. Qh4 {[%clk 01:04:12]} {[%emt
00:01:58]} Kd7 {[%clk 00:25:40]} {[%emt 00:02:50]} 29. Nxh7 {[%clk 01:03:52]}
{[%emt 00:00:48]} Qb6 {[%clk 00:25:02]} {[%emt 00:01:09]} 30. Rad1 {[%clk
00:54:47]} {[%emt 00:09:36]} Kc7 {[%clk 00:24:07]} {[%emt 00:01:25]} 31. Ng5
{[%clk 00:53:58]} {[%emt 00:01:18]} Kb8 {[%emt 00:02:57]} 32. Qf4 {[%clk
00:53:36]} Rg8 {[%clk 00:19:55]} {[%emt 00:03:06]} 33. h4 {[%clk 00:49:51]}
{[%emt 00:04:16]} Qxb2 {[%clk 00:18:37]} {[%emt 00:01:48]} 34. Nf3 {[%clk
00:48:51]} {[%emt 00:01:30]} Rg4 {[%clk 00:16:57]} {[%emt 00:02:10]} 35. Qe3
{[%clk 00:49:04]} {[%emt 00:00:17]} Rcg8 {[%clk 00:15:01]} {[%emt 00:02:26]} 36.
Re2 {[%clk 00:49:21]} {[%emt 00:00:13]} Rxg2+ {[%clk 00:13:57]} {[%emt
00:01:34]} 37. Kh1 {[%clk 00:49:30]} {[%emt 00:00:21]} Qb6 {[%clk 00:13:51]}
{[%emt 00:00:37]} {White played 39. Qe3-h5} 0-1

[Event "Ebbe Cup 48"]
[Site "Goteborgs Schackcentrum, Vegatan 20, Gothenburg, Sweden"]
[Date "2025.02.15"]
[Round "2.3"]
[White "Green, David"]
[Black "Sreedvan, Shrishti"]
[Result "1-0"]
[TimeControl "90 minutes + 30 seconds per move from move one"]
[WhiteFideId "1769332"]
[BlackFideId "1773739"]
[WhiteElo "1892"]
[BlackElo "1519"]

1. e4 {[%clk 01:30:58]} {[%emt 00:00:02]} c5 {[%clk 01:30:51]} {[%emt
00:00:09]} 2. Nf3 {[%clk 01:31:17]} {[%emt 00:00:10]} d6 {[%clk 01:31:02]}
{[%emt 00:00:20]} 3. d4 {[%clk 01:31:41]} {[%emt 00:00:06]} cxd4 {[%clk
01:30:20]} {[%emt 00:01:12]} 4. Nxd4 {[%clk 01:32:09]} {[%emt 00:00:02]} e5
{[%clk 01:29:48]} {[%emt 00:01:02]} 5. Nb5 {[%clk 01:29:54]} {[%emt 00:02:44]}
Nf6 {[%clk 01:26:52]} {[%emt 00:03:27]} 6. Bg5 {[%clk 01:27:42]} {[%emt
00:02:41]} a6 {[%clk 01:21:37]} {[%emt 00:05:46]} 7. N5c3 {[%clk 01:26:58]}
{[%emt 00:01:14]} Be7 {[%clk 01:17:54]} {[%emt 00:04:13]} 8. Bxf6 {[%clk
01:26:18]} {[%emt 00:01:09]} Bxf6 {[%clk 01:17:36]} {[%emt 00:00:49]} 9. Nd5
{[%clk 01:25:34]} {[%emt 00:01:14]} O-O {[%clk 01:15:03]} {[%emt 00:03:03]} 10.
Nbc3 {[%clk 01:24:59]} {[%emt 00:01:05]} Be6 {[%clk 01:12:05]} {[%emt
00:03:28]} 11. g3 {[%clk 01:20:13]} {[%emt 00:05:15]} Nd7 {[%clk 01:07:39]}
{[%emt 00:04:56]} 12. Bg2 {[%clk 01:18:41]} {[%emt 00:02:02]} Be7 {[%clk
01:02:11]} {[%emt 00:05:59]} 13. O-O {[%clk 01:17:22]} {[%emt 00:01:50]} Nf6
{[%clk 01:00:26]} {[%emt 00:02:14]} 14. Nxf6+ {[%clk 01:05:16]} {[%emt
00:12:36]} Bxf6 {[%clk 01:00:25]} {[%emt 00:00:32]} 15. Qd3 {[%clk 00:56:38]}
{[%emt 00:09:07]} Qd7 {[%clk 00:53:36]} {[%emt 00:07:11]} 16. Rfd1 {[%clk
00:51:04]} {[%emt 00:06:12]} Rfd8 {[%clk 00:50:34]} {[%emt 00:03:33]} 17. Nd5
{[%clk 00:40:42]} {[%emt 00:10:51]} Bxd5 {[%clk 00:48:29]} {[%emt 00:02:35]} 18.
Qxd5 {[%emt 00:02:00]} Rac8 {[%clk 00:46:37]} {[%emt 00:02:20]} 19. c3 {[%clk
00:35:04]} {[%emt 00:04:40]} Rc5 {[%clk 00:42:35]} {[%emt 00:04:32]} 20. Qd3
{[%clk 00:31:31]} {[%emt 00:04:03]} Qb5 {[%clk 00:37:07]} {[%emt 00:05:59]} 21.
Qc2 {[%clk 00:26:01]} {[%emt 00:05:57]} h6 {[%clk 00:28:48]} {[%emt 00:08:52]}
22. h4 {[%clk 00:24:37]} {[%emt 00:01:54]} h5 {[%clk 00:24:42]} {[%emt
00:04:36]} 23. Rd3 {[%clk 00:22:06]} {[%emt 00:03:00]} g6 {[%clk 00:18:47]}
{[%emt 00:06:26]} 24. Rad1 {[%clk 00:20:15]} {[%emt 00:02:21]} Qc6 {[%clk
00:15:46]} {[%emt 00:03:29]} 25. Rf3 {[%clk 00:14:25]} {[%emt 00:06:20]} Bg7
{[%clk 00:09:47]} {[%emt 00:06:29]} 26. Qb3 {[%clk 00:12:23]} {[%emt 00:02:34]}
Qd7 {[%clk 00:05:16]} {[%emt 00:05:00]} 27. Rfd3 {[%clk 00:09:25]} {[%emt
00:03:29]} Rc6 {[%clk 00:03:39]} {[%emt 00:02:07]} 28. Kh2 {[%clk 00:08:48]}
{[%emt 00:01:06]} Qe7 {[%clk 00:02:11]} {[%emt 00:01:58]} 29. Bh3 {[%clk
00:08:08]} {[%emt 00:01:10]} Qc7 {[%clk 00:01:09]} {[%emt 00:01:33]} 30. Rf3
{[%clk 00:03:15]} {[%emt 00:05:20]} Rf8 {[%clk 00:00:41]} {[%emt 00:01:00]} 31.
Rfd3 {[%clk 00:01:13]} {[%emt 00:02:31]} Rd8 {[%clk 00:00:42]} {[%emt
00:00:30]} 32. Qc2 {[%clk 00:00:55]} {[%emt 00:00:48]} Qe7 {[%clk 00:00:35]}
{[%emt 00:00:37]} 33. Rf3 {[%clk 00:00:38]} {[%emt 00:00:47]} Kh7 {[%clk
00:00:35]} {[%emt 00:00:31]} 34. Qb3 {[%clk 00:00:40]} {[%emt 00:00:28]} Bf6
{[%clk 00:00:39]} {[%emt 00:00:26]} 35. Qd5 {[%clk 00:00:39]} {[%emt 00:00:29]}
Kg7 {[%clk 00:00:33]} {[%emt 00:00:37]} 36. Rdd3 {[%clk 00:00:47]} {[%emt
00:00:22]} Rf8 {[%clk 00:00:40]} {[%emt 00:00:24]} 37. Rd2 {[%clk 00:00:47]}
{[%emt 00:00:29]} Kh7 {[%clk 00:00:36]} {[%emt 00:00:35]} 38. Rfd3 {[%clk
00:00:41]} {[%emt 00:00:36]} Rd8 {[%clk 00:00:43]} {[%emt 00:00:23]} 39. Kg1
{[%clk 00:00:41]} {[%emt 00:00:29]} Kg7 {[%clk 00:00:42]} {[%emt 00:00:31]} 40.
Rf3 {[%clk 00:00:53]} {[%emt 00:00:18]} Kh7 {[%clk 00:00:34]} {[%emt 00:00:38]}
41. Bf1 {[%clk 00:00:54]} {[%emt 00:00:29]} Rc5 {[%clk 00:00:33]} {[%emt
00:00:31]} 42. Qb3 {[%clk 00:00:52]} {[%emt 00:00:31]} d5 {[%clk 00:00:38]}
{[%emt 00:00:27]} 43. exd5 {[%clk 00:00:34]} {[%emt 00:00:48]} Rcxd5 {[%clk
00:01:00]} {[%emt 00:00:07]} 44. Rxd5 {[%clk 00:00:39]} {[%emt 00:00:24]} Rxd5
{[%clk 00:01:27]} {[%emt 00:00:04]} 45. Qxd5 {[%clk 00:01:00]} {[%emt
00:00:09]} e4 {[%clk 00:00:57]} {[%emt 00:01:52]} 46. Re3 {[%clk 00:00:55]}
{[%emt 00:00:35]} g5 {[%clk 00:00:00]} {[%emt 00:00:57]} 1-0